fUSD/lending_fUSD_20250113
["ID","MTS","AMOUNT","RATE_DAILY","PERIOD"]
[348748140,1736769034207,-964.2,9.989e-05,2]
[348748141,1736769034217,-500.0,9.989e-05,2]
[348748142,1736769034227,-500.0,9.989e-05,2]
[348748143,1736769034236,-500.0,9.989e-05,2]
[348748144,1736769034246,-500.0,9.989e-05,2]
[348748145,1736769034256,-559.36,9.989e-05,2]
[348748146,1736769034265,-500.0,9.989e-05,2]
[348748147,1736769034275,-500.0,9.989e-05,2]
[348748148,1736769034285,-500.0,9.989e-05,2]
[348748149,1736769034294,-511.39,9.989e-05,2]
[348748150,1736769034304,-659.96,9.989e-05,2]
[348748151,1736769034313,-500.0,9.998e-05,2]
[348748152,1736769034325,-500.0,9.998e-05,2]
[348748153,1736769034334,-500.0,9.998e-05,2]
[348748154,1736769034344,-500.0,9.998e-05,2]
[348748155,1736769034355,-500.0,9.998e-05,2]
[348748156,1736769034365,-567.82,9.998e-05,2]
[348748157,1736769034375,-500.0,9.998e-05,2]
[348748158,1736769034386,-500.0,9.998e-05,2]
[348748159,1736769034396,-500.0,9.998e-05,2]
[348748160,1736769034405,-500.0,9.998e-05,2]
[348748161,1736769034415,-500.0,9.998e-05,2]
[348748162,1736769034424,-500.0,9.998e-05,2]
[348748163,1736769034433,-285.807363,9.998e-05,2]
[348748164,1736769034443,-500.0,9.998e-05,2]
[348748165,1736769034452,-500.0,9.998e-05,2]
[348748166,1736769034462,-500.0,9.998e-05,2]
[348748167,1736769034474,-500.0,9.998e-05,2]
[348748168,1736769034484,-500.0,9.998e-05,2]
[348748169,1736769034494,-500.0,9.998e-05,2]
[348748170,1736769034504,-500.0,9.998e-05,2]
[348748171,1736769034513,-612.08,9.998e-05,2]
[348748172,1736769034523,-572.56,9.998e-05,2]
[348748173,1736769034532,-500.0,9.998e-05,2]
[348748174,1736769034542,-500.0,9.998e-05,2]
[348748175,1736769034551,-500.0,9.998e-05,2]
[348748176,1736769034561,-500.0,9.998e-05,2]
[348748177,1736769034571,-501.50211354,9.998e-05,2]
[348748178,1736769034580,-194.9403564,9.998e-05,2]
[348748179,1736769034590,-500.0,9.998e-05,2]
[348748180,1736769034599,-553.8630968,9.998e-05,2]
[348748181,1736769034608,-500.0,9.998e-05,2]
[348748182,1736769034617,-500.0,9.998e-05,2]
[348748183,1736769034627,-500.0,9.998e-05,2]
[348748184,1736769034636,-500.0,9.998e-05,2]
[348748185,1736769034645,-500.0,9.998e-05,2]
[348748186,1736769034654,-500.0,9.998e-05,2]
[348748187,1736769034663,-500.0,9.998e-05,2]
[348748188,1736769034672,-500.0,9.998e-05,2]
[348748189,1736769034681,-500.0,9.998e-05,2]
[348748190,1736769034690,-328.39630581,9.998e-05,2]
[348748191,1736769034700,-500.0,9.998e-05,2]
[348748192,1736769034709,-500.0,9.998e-05,2]
[348748193,1736769034720,-500.0,9.998e-05,2]
[348748194,1736769034729,-500.0,9.998e-05,2]
[348748195,1736769034738,-500.0,9.998e-05,2]
[348748196,1736769034747,-500.0,9.998e-05,2]
[348748197,1736769034757,-500.0,9.998e-05,2]
[348748198,1736769034766,-500.0,9.998e-05,2]
[348748199,1736769034775,-500.0,9.998e-05,2]
[348748200,1736769034784,-500.0,9.998e-05,2]
[348748201,1736769034793,-500.0,9.998e-05,2]
[348748202,1736769034802,-500.0,9.998e-05,2]
[348748203,1736769034811,-500.0,9.998e-05,2]
[348748204,1736769034820,-500.0,9.998e-05,2]
[348748205,1736769034829,-440.40264742,9.998e-05,2]
[348748206,1736769034839,-500.0,9.998e-05,2]
[348748207,1736769034847,-500.0,9.998e-05,2]
[348748208,1736769034856,-500.0,9.998e-05,2]
[348748209,1736769034869,-500.0,9.998e-05,2]
[348748210,1736769034878,-500.0,9.998e-05,2]
[348748211,1736769034887,-500.0,9.998e-05,2]
[348748212,1736769034896,-500.0,9.998e-05,2]
[348748213,1736769034906,-500.0,9.998e-05,2]
[348748214,1736769034915,-500.0,9.998e-05,2]
[348748215,1736769034925,-500.0,9.998e-05,2]
[348748216,1736769034934,-500.0,9.998e-05,2]
[348748217,1736769034944,-500.0,9.998e-05,2]
[348748218,1736769034954,-500.0,9.998e-05,2]
[348748219,1736769034964,-500.0,9.998e-05,2]
[348748220,1736769034973,-500.0,9.998e-05,2]
[348748221,1736769034983,-500.0,9.998e-05,2]
[348748222,1736769034992,-500.0,9.998e-05,2]
[348748223,1736769035002,-610.73,9.998e-05,2]
[348748224,1736769035012,-500.0,9.998e-05,2]
[348748225,1736769035021,-500.0,9.998e-05,2]
[348748226,1736769035031,-500.0,9.998e-05,2]
[348748227,1736769035040,-500.0,9.998e-05,2]
[348748228,1736769035049,-500.0,9.998e-05,2]
[348748229,1736769035058,-500.0,9.998e-05,2]
[348748230,1736769035068,-500.0,9.998e-05,2]
[348748231,1736769035077,-500.0,9.998e-05,2]
[348748232,1736769035086,-500.0,9.998e-05,2]
[348748233,1736769035095,-500.0,9.998e-05,2]
[348748234,1736769035105,-500.0,9.998e-05,2]
[348748235,1736769035114,-500.0,9.998e-05,2]
[348748236,1736769035123,-500.0,9.998e-05,2]
[348748237,1736769035132,-500.0,9.998e-05,2]
[348748238,1736769035141,-568.14257712,9.998e-05,2]
[348748239,1736769035150,-569.35422327,9.998e-05,2]
[348748240,1736769035160,-500.0,9.998e-05,2]
[348748241,1736769035170,-500.0,9.998e-05,2]
[348748242,1736769035180,-500.0,9.998e-05,2]
[348748243,1736769035189,-907.6,9.998e-05,2]
[348748244,1736769035199,-348.61688396,9.998e-05,2]
[348748245,1736769035208,-621.39623252,9.998e-05,2]
[348748246,1736769035219,-500.0,9.998e-05,2]
[348748247,1736769035229,-500.0,9.998e-05,2]
[348748248,1736769035238,-500.0,9.998e-05,2]
[348748249,1736769035248,-500.0,9.998e-05,2]
[348748250,1736769035257,-500.0,9.998e-05,2]
[348748251,1736769035267,-500.0,9.998e-05,2]
[348748252,1736769035277,-500.0,9.998e-05,2]
[348748253,1736769035286,-500.0,9.998e-05,2]
[348748254,1736769035296,-500.0,9.998e-05,2]
[348748255,1736769035306,-500.0,9.998e-05,2]
[348748256,1736769035318,-500.0,9.998e-05,2]
[348748257,1736769035328,-500.0,9.998e-05,2]
[348748258,1736769035338,-775.79,9.998e-05,2]
[348748259,1736769035347,-500.0,9.998e-05,2]
[348748260,1736769035357,-500.0,9.998e-05,2]
[348748261,1736769035367,-500.0,9.998e-05,2]
[348748262,1736769035377,-500.0,9.998e-05,2]
[348748263,1736769035387,-500.0,9.998e-05,2]
[348748264,1736769035396,-500.0,9.998e-05,2]
[348748265,1736769035406,-500.0,9.998e-05,2]
[348748266,1736769035416,-500.0,9.998e-05,2]
[348748267,1736769035426,-500.0,9.998e-05,2]
[348748268,1736769035435,-656.28,9.998e-05,2]
[348748269,1736769035445,-500.0,9.998e-05,2]
[348748270,1736769035454,-500.0,9.998e-05,2]
[348748271,1736769035466,-500.0,9.998e-05,2]
[348748272,1736769035475,-500.0,9.998e-05,2]
[348748273,1736769035484,-500.0,9.998e-05,2]
[348748274,1736769035494,-500.0,9.998e-05,2]
[348748275,1736769035504,-500.0,9.998e-05,2]
[348748276,1736769035513,-500.0,9.998e-05,2]
[348748277,1736769035523,-500.0,9.998e-05,2]
[348748278,1736769035532,-500.0,9.998e-05,2]
[348748279,1736769035542,-500.0,9.998e-05,2]
[348748280,1736769035551,-500.0,9.998e-05,2]
[348748281,1736769035560,-500.0,9.998e-05,2]
[348748282,1736769035570,-500.0,9.998e-05,2]
[348748283,1736769035579,-500.0,9.998e-05,2]
[348748284,1736769035589,-500.0,9.998e-05,2]
[348748285,1736769035599,-500.0,9.998e-05,2]
[348748286,1736769035609,-1238.42,9.998e-05,2]
[348748287,1736769035618,-500.0,9.998e-05,2]
[348748288,1736769035628,-500.0,9.998e-05,2]
[348748289,1736769035637,-500.0,9.998e-05,2]
[348748290,1736769035647,-500.0,9.998e-05,2]
[348748291,1736769035656,-500.0,9.998e-05,2]
[348748292,1736769035665,-590.49,9.998e-05,2]
[348748293,1736769035675,-500.0,9.998e-05,2]
[348748294,1736769035684,-506.02834648,9.998e-05,2]
[348748295,1736769035695,-296.17631208,9.998e-05,2]
[348748296,1736769035704,-500.0,9.998e-05,2]
[348748297,1736769035714,-500.0,9.998e-05,2]
[348748298,1736769035724,-500.0,9.998e-05,2]
[348748299,1736769035733,-500.0,9.998e-05,2]
[348748300,1736769035742,-500.0,9.998e-05,2]
[348748301,1736769035752,-500.0,9.998e-05,2]
[348748302,1736769035761,-746.53,9.998e-05,2]
[348748303,1736769035770,-185.54,9.998e-05,2]
[348748304,1736769035779,-632.9,9.998e-05,2]
[348748305,1736769035789,-500.0,9.998e-05,2]
[348748306,1736769035799,-500.0,9.998e-05,2]
[348748307,1736769035808,-500.0,9.998e-05,2]
[348748308,1736769035818,-500.0,9.998e-05,2]
[348748309,1736769035827,-736.85,9.998e-05,2]
[348748310,1736769035836,-500.0,9.998e-05,2]
[348748311,1736769035845,-985.86,9.998e-05,2]
[348748312,1736769035854,-500.0,9.998e-05,2]
[348748313,1736769035863,-500.0,9.998e-05,2]
[348748314,1736769035874,-500.0,9.998e-05,2]
[348748315,1736769035884,-500.0,9.998e-05,2]
[348748316,1736769035895,-500.0,9.998e-05,2]
[348748317,1736769035904,-500.0,9.998e-05,2]
[348748318,1736769035914,-500.0,9.998e-05,2]
[348748319,1736769035923,-1207.69,9.998e-05,2]
[348748320,1736769035932,-500.0,9.998e-05,2]
[348748321,1736769035941,-500.0,9.998e-05,2]
[348748322,1736769035951,-500.0,9.998e-05,2]
[348748323,1736769035960,-831.48,9.998e-05,2]
[348748324,1736769035971,-210.49680428,9.998e-05,2]
[348748325,1736769035980,-500.0,9.998e-05,2]
[348748326,1736769035989,-500.0,9.998e-05,2]
[348748327,1736769035999,-477.090268,9.999e-05,2]
[348748328,1736769036008,-500.0,9.999e-05,2]
[348748329,1736769036018,-500.0,9.999e-05,2]
[348748330,1736769036027,-167.767433,9.999e-05,2]
[348748331,1736769036036,-500.0,9.999e-05,2]
[348748332,1736769036046,-163.831252,9.999e-05,2]
[348748333,1736769036056,-500.0,9.999e-05,2]
[348748334,1736769036065,-562.343944,9.999e-05,2]
[348748335,1736769036075,-500.0,9.999e-05,2]
[348748336,1736769036084,-500.0,9.999e-05,2]
[348748337,1736769036094,-500.0,9.999e-05,2]
[348748338,1736769036103,-500.0,9.999e-05,2]
[348748339,1736769036112,-500.0,9.999e-05,2]
[348748340,1736769036121,-500.0,9.999e-05,2]
[348748341,1736769036131,-500.0,9.999e-05,2]
[348748342,1736769036140,-500.0,9.999e-05,2]
[348748343,1736769036149,-500.0,9.999e-05,2]
[348748344,1736769036158,-500.0,9.999e-05,2]
[348748345,1736769036167,-500.0,9.999e-05,2]
[348748346,1736769036177,-500.0,9.999e-05,2]
[348748347,1736769036186,-500.0,9.999e-05,2]
[348748348,1736769036195,-500.0,9.999e-05,2]
[348748349,1736769036204,-500.0,9.999e-05,2]
[348748350,1736769036213,-500.0,9.999e-05,2]
[348748351,1736769036225,-500.0,9.999e-05,2]
[348748352,1736769036235,-582.55901154,9.999e-05,2]
[348748353,1736769036244,-518.59540817,9.999e-05,2]
[348748354,1736769036253,-500.0,9.999e-05,2]
[348748355,1736769036262,-979.59,9.999e-05,2]
[348748356,1736769036272,-500.0,9.999e-05,2]
[348748357,1736769036283,-500.0,9.999e-05,2]
[348748358,1736769036293,-500.0,9.999e-05,2]
[348748359,1736769036302,-500.0,9.999e-05,2]
[348748360,1736769036312,-500.0,9.999e-05,2]
[348748361,1736769036321,-500.0,9.999e-05,2]
[348748362,1736769036331,-500.0,9.999e-05,2]
[348748363,1736769036340,-500.0,9.999e-05,2]
[348748364,1736769036350,-500.0,9.999e-05,2]
[348748365,1736769036359,-500.0,9.999e-05,2]
[348748366,1736769036368,-500.0,9.999e-05,2]
[348748367,1736769036378,-500.0,9.999e-05,2]
[348748368,1736769036387,-500.0,9.999e-05,2]
[348748369,1736769036397,-500.0,9.999e-05,2]
[348748370,1736769036577,-500.0,9.999e-05,2]
[348748371,1736769036587,-500.0,9.999e-05,2]
[348748372,1736769036596,-500.0,9.999e-05,2]
[348748373,1736769036606,-500.0,9.999e-05,2]
[348748374,1736769036616,-500.0,9.999e-05,2]
[348748375,1736769036627,-500.0,9.999e-05,2]
[348748376,1736769036636,-536.76,9.999e-05,2]
[348748377,1736769036645,-500.0,9.999e-05,2]
[348748378,1736769036655,-500.0,9.999e-05,2]
[348748379,1736769036664,-500.0,9.999e-05,2]
[348748380,1736769036674,-500.0,9.999e-05,2]
[348748381,1736769036684,-500.0,9.999e-05,2]
[348748382,1736769036696,-500.0,9.999e-05,2]
[348748383,1736769036705,-500.0,9.999e-05,2]
[348748384,1736769036715,-500.0,9.999e-05,2]
[348748385,1736769036725,-500.0,9.999e-05,2]
[348748386,1736769036735,-500.0,9.999e-05,2]
[348748387,1736769036744,-500.0,9.999e-05,2]
[348748388,1736769036754,-500.0,9.999e-05,2]
[348748389,1736769036763,-500.0,9.999e-05,2]
[348748390,1736769036772,-500.0,9.999e-05,2]
[348748391,1736769036782,-585.69,9.999e-05,2]
[348748392,1736769036792,-500.0,9.999e-05,2]
[348748393,1736769036801,-701.27,9.999e-05,2]
[348748394,1736769036811,-500.0,9.999e-05,2]
[348748395,1736769036821,-500.0,9.999e-05,2]
[348748396,1736769036830,-500.0,9.999e-05,2]
[348748397,1736769036840,-594.19,9.999e-05,2]
[348748398,1736769036850,-500.0,9.999e-05,2]
[348748399,1736769036859,-500.0,9.999e-05,2]
[348748400,1736769036869,-500.0,9.999e-05,2]
[348748401,1736769036883,-500.0,9.999e-05,2]
[348748402,1736769036893,-500.0,9.999e-05,2]
[348748403,1736769036903,-500.0,9.999e-05,2]
[348748404,1736769036912,-500.0,9.999e-05,2]
[348748405,1736769036922,-500.0,9.999e-05,2]
[348748406,1736769036932,-500.0,9.999e-05,2]
[348748407,1736769036941,-500.0,9.999e-05,2]
[348748408,1736769036951,-500.0,9.999e-05,2]
[348748409,1736769036960,-500.0,9.999e-05,2]
[348748410,1736769036973,-500.0,9.999e-05,2]
[348748411,1736769036982,-1289.0,9.999e-05,2]
[348748412,1736769036992,-510.22645008,9.999e-05,2]
[348748413,1736769037002,-1203.45,9.999e-05,2]
[348748414,1736769037012,-500.0,9.999e-05,2]
[348748415,1736769037022,-500.0,9.999e-05,2]
[348748416,1736769037031,-500.0,9.999e-05,2]
[348748417,1736769037041,-500.0,9.999e-05,2]
[348748418,1736769037051,-906.45,9.999e-05,2]
[348748419,1736769037060,-500.0,9.999e-05,2]
[348748420,1736769037070,-500.0,9.999e-05,2]
[348748421,1736769037079,-500.0,9.999e-05,2]
[348748422,1736769037089,-1898.7,9.999e-05,2]
[348748423,1736769037098,-500.0,9.999e-05,2]
[348748424,1736769037108,-1249.62,9.999e-05,2]
[348748425,1736769037118,-500.0,9.999e-05,2]
[348748426,1736769037127,-500.0,9.999e-05,2]
[348748427,1736769037137,-500.0,9.999e-05,2]
[348748428,1736769037146,-500.0,9.999e-05,2]
[348748429,1736769037156,-500.0,9.999e-05,2]
[348748430,1736769037166,-500.0,9.999e-05,2]
[348748431,1736769037175,-500.0,9.999e-05,2]
[348748432,1736769037186,-500.0,9.999e-05,2]
[348748433,1736769037195,-500.0,9.999e-05,2]
[348748434,1736769037205,-500.0,9.999e-05,2]
[348748435,1736769037215,-500.0,9.999e-05,2]
[348748436,1736769037226,-500.0,9.999e-05,2]
[348748437,1736769037236,-500.0,9.999e-05,2]
[348748438,1736769037245,-500.0,9.999e-05,2]
[348748439,1736769037255,-500.0,9.999e-05,2]
[348748440,1736769037265,-500.0,9.999e-05,2]
[348748441,1736769037274,-500.0,9.999e-05,2]
[348748442,1736769037284,-500.0,9.999e-05,2]
[348748443,1736769037294,-500.0,9.999e-05,2]
[348748444,1736769037303,-500.0,9.999e-05,2]
[348748445,1736769037313,-500.0,9.999e-05,2]
[348748447,1736769037324,-770.76,9.999e-05,2]
[348748449,1736769037334,-640.8,9.999e-05,2]
[348748451,1736769037344,-500.0,9.999e-05,2]
[348748453,1736769037354,-500.0,9.999e-05,2]
[348748455,1736769037364,-500.0,9.999e-05,2]
[348748457,1736769037374,-500.0,9.999e-05,2]
[348748459,1736769037384,-1308.77,9.999e-05,2]
[348748461,1736769037394,-500.0,9.999e-05,2]
[348748462,1736769037403,-500.0,9.999e-05,2]
[348748464,1736769037412,-1086.59,9.999e-05,2]
[348748467,1736769037422,-500.0,9.999e-05,2]
[348748472,1736769037432,-500.0,9.999e-05,2]
[348748474,1736769037441,-596.53,9.999e-05,2]
[348748475,1736769037451,-500.0,9.999e-05,2]
[348748476,1736769037460,-643.83,9.999e-05,2]
[348748477,1736769037473,-500.0,9.999e-05,2]
[348748478,1736769037483,-500.0,9.999e-05,2]
[348748479,1736769037493,-500.0,9.999e-05,2]
[348748481,1736769037503,-500.0,9.999e-05,2]
[348748483,1736769037513,-1450.01,9.999e-05,2]
[348748485,1736769037523,-500.0,9.999e-05,2]
[348748486,1736769037534,-500.0,9.999e-05,2]
[348748487,1736769037544,-500.0,9.999e-05,2]
[348748488,1736769037554,-500.0,9.999e-05,2]
[348748489,1736769037563,-500.0,9.999e-05,2]
[348748490,1736769037572,-500.0,9.999e-05,2]
[348748491,1736769037582,-500.0,9.999e-05,2]
[348748492,1736769037591,-500.0,9.999e-05,2]
[348748493,1736769037602,-500.0,9.999e-05,2]
[348748494,1736769037612,-463.44853139,9.999e-05,2]
[348748495,1736769037622,-500.0,9.999e-05,2]
[348748496,1736769037632,-500.0,9.999e-05,2]
[348748497,1736769037642,-1146.47,9.999e-05,2]
[348748498,1736769037651,-500.0,9.999e-05,2]
[348748499,1736769037661,-894.19,9.999e-05,2]
[348748500,1736769037670,-500.0,9.999e-05,2]
[348748501,1736769037679,-500.0,9.999e-05,2]
[348748502,1736769037689,-500.0,9.999e-05,2]
[348748503,1736769037698,-500.0,9.999e-05,2]
[348748504,1736769037708,-1654.86,9.999e-05,2]
[348748505,1736769037719,-830.22,9.999e-05,2]
[348748506,1736769037729,-1295.27,9.999e-05,2]
[348748507,1736769037738,-2289.0,0.0001,2]
[348748508,1736769037748,-488703.43772212,0.0001,2]
[348748509,1736769038010,-3086.81389001,0.0001,2]
[348748510,1736769038021,-732.732,0.0001,2]
[348748511,1736769038033,-91119.99999999,0.0001,2]
[348748512,1736769038051,-457.9575,0.0001,2]
[348748513,1736769038077,-589.2249975,0.0001,2]
[348748514,1736769038089,-913.4125,0.0001,2]
[348748533,1736769038855,-581.41795887,9.998e-05,2]
[348748534,1736769038866,-296.12036444,9.998e-05,2]
[348748535,1736769038886,-334.43167669,9.998e-05,2]
[348748536,1736769038896,-1510.76,9.998e-05,2]
[348748537,1736769038905,-138.38209731,0.0001,2]
[348748538,1736769038916,-600.20674799,0.0001,2]
[348748539,1736769038935,-9315.63957483,0.0001,2]
[348748540,1736769038955,-211967.80586448,0.0001,2]
[348748541,1736769039086,-607.97363732,0.0001,2]
[348748542,1736769039098,-406.93630679,0.0001,2]
[348748543,1736769039109,-1827.83880752,0.0001,2]
[348748544,1736769039121,-1165.9087451,0.0001,2]
[348748545,1736769039133,-5261417.97909032,0.0001,2]
[348748546,1736769039143,-4156812.05684043,0.0001,2]
[348748547,1736769039156,-1204.74360712,0.0001,2]
[348748548,1736769039186,-428.835,0.0001,2]
[348748549,1736769039198,-2308.50610211,0.0001,2]
[348748550,1736769039210,-3540.0,0.0001,2]
[348748551,1736769039224,-548.00571815,0.0001,2]
[348748552,1736769039236,-23234.35187216,0.0001,2]
[348748553,1736769039247,-35520.67938267,0.0001,2]
[348748554,1736769039259,-9100.67873159,0.0001,2]
[348748556,1736769039270,-11393.94641076,0.0001,2]
[348748557,1736769039281,-1483.39346519,0.0001,2]
[348748558,1736769039292,-1471.96391597,0.0001,2]
[348748559,1736769039304,-620.84237014,0.0001,2]
[348748560,1736769039316,-5023.82374915,0.0001,2]
[348748561,1736769039328,-11010.9998988,0.0001,2]
[348748613,1736769039883,-2097.86412202,0.0001,2]
[348748615,1736769039895,-58400.75652336,0.0001,2]
[348748617,1736769039907,-6034.16703497,0.0001,2]
[348748619,1736769039919,-281.58509351,0.0001,2]
[348748621,1736769039930,-1021.095,0.0001,2]
[348748623,1736769039941,-483.21795857,0.0001,2]
[348748626,1736769039954,-452.45572213,0.0001,2]
[348748631,1736769039996,-917.03,0.0001,2]
[348748633,1736769040008,-1575.5186133,0.0001,2]
[348748641,1736769040084,-170.8151477,0.0001,2]
[348748644,1736769040096,-557401.15921008,0.0001,2]
[348748646,1736769040107,-477.2151089,0.0001,2]
[348748647,1736769040118,-1993.46285147,0.0001,2]
[348748648,1736769040129,-9139.09233636,0.0001,2]
[348748649,1736769040140,-4199.59747205,0.0001,2]
[348748650,1736769040151,-9138.15379999,0.0001,2]
[348748651,1736769040162,-2734.5,0.0001,2]
[348748652,1736769040173,-3103.1,0.0001,2]
[348748653,1736769040185,-275.722,0.0001,2]
[348748655,1736769040196,-762.84,0.0001,2]
[348748656,1736769040207,-622.68,0.0001,2]
[348748658,1736769040220,-555.70610237,0.0001,2]
[348748661,1736769040231,-418.59099643,0.0001,2]
[348748663,1736769040242,-297.82867182,0.0001,2]
[348748665,1736769040253,-632.68619699,0.0001,2]
[348748667,1736769040266,-12577.44946613,0.0001,2]
[348748670,1736769040278,-1693.55000005,0.0001,2]
[348748672,1736769040289,-1197.36579206,0.0001,2]
[348748674,1736769040300,-2692.47478749,0.0001,2]
[348748676,1736769040311,-3729.43764715,0.0001,2]
[348748853,1736769042647,-276.29565446,9.999e-05,2]
[348748857,1736769042658,-223.70434554,9.999e-05,2]
[348748861,1736769042668,-622.46010869,0.0001,2]
[348748870,1736769042728,-166313.0004,0.0001,2]
[348748872,1736769042739,-779513.26871352,0.0001,2]
[348748874,1736769042752,-800.48989471,0.0001,2]
[348748876,1736769042764,-267.180579,0.0001,2]
[348748880,1736769042815,-7437.089528,0.0001,2]
[348748882,1736769042826,-437.0666301,0.0001,2]
[348748883,1736769042837,-1857.39851218,0.0001,2]
[348748884,1736769042848,-1073280.17222589,0.0001,2]
[348748885,1736769042858,-7764.0017081,0.0001,2]
[348748887,1736769042870,-5358.95820267,0.0001,2]
[348748889,1736769042883,-396.18532911,0.0001,2]
[348748891,1736769042894,-320.000002,0.0001,2]
[348748894,1736769042905,-402.6,0.0001,2]
[348748896,1736769042918,-734.65,0.0001,2]
[348748898,1736769042928,-926.14839515,0.0001,2]
[348748902,1736769042959,-2737.78505735,0.0001,2]
[348748904,1736769042972,-607.7952,0.0001,2]
[348748906,1736769042984,-12917.83962908,0.0001,2]
[348748908,1736769042995,-11633.98090159,0.0001,2]
[348748911,1736769043005,-3197.54513101,0.0001,2]
[348748913,1736769043016,-274.386,0.0001,2]
[348748915,1736769043027,-22349.24288122,0.0001,2]
[348748917,1736769043041,-548.915419,0.0001,2]
[348749152,1736769045580,-1274.02,9.987e-05,2]
[348749155,1736769045589,-1237.85,9.999e-05,2]
[348749158,1736769045599,-6625.93,0.0001,2]
[348749160,1736769045610,-6202.00000001,0.0001,2]
[348749164,1736769045622,-7593.63502307,0.0001,2]
[348749169,1736769045653,-17723.89052438,0.0001,2]
[348749172,1736769045678,-786.75805171,0.0001,2]
[348749173,1736769045689,-3664.6581764,0.0001,2]
[348749175,1736769045700,-1139.1771887,0.0001,2]
[348749177,1736769045710,-393.73407658,0.0001,2]
[348749178,1736769045722,-360.93352908,0.0001,2]
[348749180,1736769045736,-324.4,0.0001,2]
[348749182,1736769045747,-7704.83184912,0.0001,2]
[348749183,1736769045759,-48821.01897515,0.0001,2]
[348749185,1736769045770,-2184.54012217,0.0001,2]
[348749187,1736769045782,-38816.45375,0.0001,2]
[348749189,1736769045793,-2181.61678163,0.0001,2]
[348749190,1736769045804,-3941.41200028,0.0001,2]
[348749193,1736769045830,-310.81049999,0.0001,2]
[348749195,1736769045841,-4011.775974,0.0001,2]
[348749196,1736769045852,-2611.4125,0.0001,2]
[348749198,1736769045863,-1955.8075663,0.0001,2]
[348749200,1736769045875,-2074.8974902,0.0001,2]
[348749202,1736769045890,-2936.358994,0.0001,2]
[348749204,1736769045901,-5342.2933895,0.0001,2]
[348749206,1736769045912,-3373.4755,0.0001,2]
[348749207,1736769045924,-1619.8275992,0.0001,2]
[348749208,1736769045935,-339.19999973,0.0001,2]
[348749209,1736769045946,-6500.0,0.0001,2]
[348749211,1736769045960,-1405.65538257,0.0001,2]
[348749243,1736769486964,687.64,8.219e-05,2]
[348749245,1736769896678,-1000.0,8.983e-05,2]
[348749465,1736770231762,-250.0,9.165e-05,2]
[348749466,1736770231772,-91.30276613,9.245e-05,2]
[348749467,1736770231784,-75.96723387,9.245e-05,2]
[348749468,1736770231794,-186.03,9.309e-05,2]
[348749469,1736770231804,-250.0,9.453e-05,2]
[348749470,1736770231814,-153.0,9.5e-05,2]
[348749471,1736770231823,-14227.34849484,9.818e-05,2]
[348749472,1736770231833,-860.28947546,9.9e-05,10]
[348749473,1736770231843,-139.71052454,9.9e-05,10]
[348749474,1736770231852,-7651.54037205,9.97e-05,2]
[348749475,1736770231862,-273.93587528,9.97e-05,2]
[348749476,1736770231872,-398.87154858,9.97e-05,2]
[348749477,1736770231882,-200.23366877,9.971e-05,2]
[348749478,1736770231891,-859.2600006,9.971e-05,2]
[348749479,1736770231902,-398.87154858,9.971e-05,2]
[348749480,1736770231911,-2840.85506785,9.972e-05,2]
[348749481,1736770231921,-7651.54037205,9.972e-05,2]
[348749482,1736770231930,-2639.01753717,9.972e-05,2]
[348749483,1736770231940,-22511.31882346,9.972e-05,2]
[348749484,1736770231951,-2564.39136748,9.972e-05,2]
[348749485,1736770231960,-200.23366877,9.972e-05,2]
[348749486,1736770231970,-5802.11670293,9.973e-05,2]
[348749487,1736770231980,-500.40855569,9.973e-05,2]
[348749488,1736770231989,-160.85957559,9.973e-05,2]
[348749489,1736770231999,-500.0,9.973e-05,2]
[348749490,1736770232009,-2221.4066591,9.973e-05,2]
[348749491,1736770232018,-374.25425694,9.973e-05,2]
[348749492,1736770232028,-5665.5858877,9.973e-05,2]